fUSD/lending_fUSD_20251224
["ID","MTS","AMOUNT","RATE_DAILY","PERIOD"]
[399681069,1766615440494,-286.12837513,0.00013698,2]
[399681070,1766615440503,-500.0,0.00013698,2]
[399681071,1766615440513,-500.0,0.00013698,2]
[399681072,1766615440522,-13762.82,0.00013699,2]
[399681073,1766615440531,-200.0,0.00013699,2]
[399681074,1766615440541,-1000.0,0.00013699,2]
[399681075,1766615440551,-500.0,0.00013699,2]
[399681076,1766615440560,-176.97036574,0.00013699,2]
[399681077,1766615440570,-1000.0,0.0001372,2]
[399681078,1766615440580,-601.67,0.00013735,2]
[399681079,1766615440590,-255.0,0.00013915,2]
[399681080,1766615440599,-177.95989573,0.00013922,2]
[399681081,1766615440609,-500.0,0.00013932,2]
[399681082,1766615440619,-1736.93,0.00013972,2]
[399681083,1766615440628,-600.0,0.00013985,2]
[399681084,1766615440639,-600.0,0.00013985,2]
[399681085,1766615440649,-600.0,0.00013985,2]
[399681087,1766615440660,-600.0,0.00013985,2]
[399681088,1766615440669,-600.0,0.00013985,2]
[399681089,1766615440679,-195.0,0.00013985,2]
[399681090,1766615440689,-300.0,0.00013985,2]
[399681091,1766615440699,-2500.0,0.00013985,2]
[399681092,1766615440709,-300.0,0.00013985,2]
[399681094,1766615440718,-300.0,0.00013985,2]
[399681095,1766615440728,-300.0,0.00013985,2]
[399681096,1766615440738,-300.0,0.00013985,2]
[399681097,1766615440747,-300.0,0.00013985,2]
[399681098,1766615440757,-601.67,0.00014009,2]
[399681099,1766615440767,-420.0,0.00014054,2]
[399681100,1766615440777,-1680.0,0.00014094,2]
[399681101,1766615440787,-195.0,0.00014095,2]
[399681102,1766615440796,-250.0,0.00014095,2]
[399681103,1766615440806,-300.0,0.00014095,2]
[399681104,1766615440815,-195.0,0.00014095,2]
[399681105,1766615440826,-250.0,0.00014095,2]
[399681106,1766615440836,-300.0,0.00014095,2]
[399681107,1766615440846,-19231.83147277,0.00014109,2]
[399681108,1766615440856,-14050.46146588,0.00014109,2]
[399681109,1766615440865,-1600.0,0.00014149,2]
[399681110,1766615440875,-335.48885559,0.00014168,2]
[399681111,1766615440885,-500.0,0.00014204,2]
[399681112,1766615440895,-500.0,0.00014204,2]
[399681113,1766615440905,-500.0,0.00014204,2]
[399681114,1766615440914,-500.0,0.00014206,2]
[399681115,1766615440925,-3799.0,0.00014276,2]
[399681116,1766615440935,-601.71,0.00014283,2]
[399681117,1766615440944,-1098.0,0.0001429,2]
[399681118,1766615440955,-183.75,0.00014373,2]
[399681119,1766615440964,-500.0,0.0001448,2]
[399681120,1766615440974,-3933.70575324,0.0001451,2]
[399681121,1766615440984,-19231.83147277,0.00014574,2]
[399681122,1766615440994,-14050.46146588,0.00014574,2]
[399681123,1766615441005,-543.0,0.00014599,2]
[399681124,1766615441017,-287.61899177,0.00014599,2]
[399681125,1766615441027,-334.5472959,0.00014599,2]
[399681126,1766615441037,-1000.0,0.000146,2]
[399681127,1766615441047,-500.0,0.00014629,2]
[399681128,1766615441056,-217.39,0.00014689,2]
[399681129,1766615441066,-186.05882105,0.00014703,2]
[399681130,1766615441075,-594.89493419,0.00014754,2]
[399681131,1766615441087,-166.66,0.00014763,2]
[399681132,1766615441097,-1008.0,0.000148,2]
[399681133,1766615441107,-379.66,0.00014883,2]
[399681134,1766615441117,-5014.92,0.00014999,2]
[399681135,1766615441128,-2041.47960317,0.00015,2]
[399681136,1766615441138,-7947.26999932,0.00015,2]
[399681137,1766615441149,-21363.10346556,0.00015,2]
[399681138,1766615441159,-1155.1798605,0.00015,2]
[399681139,1766615441169,-33595.71545948,0.00015,2]
[399681140,1766615441179,-19231.83147277,0.0001504,2]
[399681141,1766615441189,-14050.46146588,0.0001504,2]
[399681142,1766615441199,-1098.0,0.00015042,2]
[399681143,1766615441210,-183.75,0.00015058,2]
[399681144,1766615441219,-151.0,0.00015068,2]
[399681145,1766615441231,-151.0,0.00015068,2]
[399681146,1766615441241,-151.0,0.00015068,2]
[399681147,1766615441252,-151.0,0.00015068,2]
[399681148,1766615441262,-151.0,0.00015068,2]
[399681149,1766615441272,-151.0,0.00015068,2]
[399681150,1766615441282,-151.0,0.00015068,2]
[399681151,1766615441292,-151.0,0.00015068,2]
[399681152,1766615441302,-151.0,0.00015068,2]
[399681153,1766615441312,-151.0,0.00015068,2]
[399681154,1766615441322,-151.0,0.00015068,2]
[399681155,1766615441332,-151.0,0.00015068,2]
[399681156,1766615441342,-275.32291,0.00015068,2]
[399681157,1766615441353,-433.0,0.00015106,2]
[399681158,1766615441363,-245.21,0.00015159,2]
[399681159,1766615441374,-150.31,0.00015178,2]
[399681160,1766615441383,-150.0,0.00015249,2]
[399681161,1766615441394,-150.0,0.00015258,2]
[399681162,1766615441403,-150.0,0.00015288,2]
[399681163,1766615441413,-150.0,0.00015288,2]
[399681164,1766615441423,-150.0,0.00015288,2]
[399681165,1766615441434,-150.0,0.00015288,2]
[399681166,1766615441444,-150.0,0.00015288,2]
[399681167,1766615441454,-150.0,0.00015288,2]
[399681168,1766615441464,-150.0,0.00015288,2]
[399681169,1766615441474,-179.31223623,0.00015288,2]
[399681170,1766615441484,-1517.64,0.000153,2]
[399681171,1766615441494,-253.09677672,0.00015328,2]
[399681172,1766615441504,-506.05021686,0.000154,2]
[399681173,1766615441513,-587.0,0.00015416,2]
[399681174,1766615441523,-1000.0,0.00015435,2]
[399681175,1766615441533,-183.91765879,0.00015474,2]
[399681176,1766615441543,-2351.0,0.00015504,2]
[399681177,1766615441554,-19231.83147277,0.00015505,2]
[399681178,1766615441564,-14050.46146588,0.00015505,2]
[399681179,1766615441575,-500.0,0.00015555,2]
[399681180,1766615441584,-4757.34655474,0.00015556,2]
[399681181,1766615441595,-500.0,0.0001557,2]
[399681182,1766615441605,-335.48885559,0.00015621,2]
[399681183,1766615441615,-500.0,0.00015721,2]
[399681184,1766615441625,-1600.0,0.00015721,2]
[399681185,1766615441635,-166.67,0.00015722,2]
[399681186,1766615441644,-303.44161789,0.00015728,2]
[399681187,1766615441654,-10000.0,0.00015733,2]
[399681188,1766615441664,-183.75,0.00015742,2]
[399681189,1766615441674,-1098.0,0.00015834,2]
[399681190,1766615441683,-217.39,0.00015877,2]
[399681191,1766615441693,-2430.0,0.0001588,2]
[399681192,1766615441703,-617.446,0.0001588,2]
[399681193,1766615441713,-4807.0,0.0001588,2]
[399681194,1766615441724,-183.91,0.0001589,2]
[399681195,1766615441734,-226.45427209,0.000159,2]
[399681196,1766615441744,-543.0,0.00015968,2]
[399681197,1766615441753,-298.26089446,0.00015968,2]
[399681198,1766615441763,-346.92554585,0.00015968,2]
[399681199,1766615441773,-599.60298507,0.00015969,2]
[399681200,1766615441783,-19231.83147277,0.0001597,2]
[399681201,1766615441794,-14050.46146588,0.0001597,2]
[399681202,1766615441804,-500.0,0.00015999,2]
[399681203,1766615441814,-500.0,0.00015999,2]
[399681204,1766615441824,-500.0,0.00015999,2]
[399681205,1766615441835,-150.0,0.00015999,2]
[399681206,1766615441845,-6772.25268696,0.00016,2]
[399681207,1766615441855,-215539.11468127,0.00016,2]
[399681208,1766615441864,-599.55417067,0.00016,2]
[399681209,1766615441875,-150.11,0.00016,2]
[399681210,1766615441885,-1747.0,0.0001601,2]
[399681211,1766615441894,-1747.0,0.00016024,2]
[399681212,1766615441904,-403.88347702,0.00016078,2]
[399681213,1766615441914,-379.66,0.00016129,2]
[399681214,1766615441924,-150.0,0.00016137,2]
[399681215,1766615441934,-150.0,0.00016137,2]
[399681216,1766615441943,-3020.0,0.00016172,2]
[399681217,1766615441953,-1747.0,0.00016174,2]
[399681218,1766615441962,-5000.000782,0.000162,5]
[399681219,1766615441972,-1747.0,0.00016217,2]
[399681220,1766615441983,-183.91,0.0001624,2]
[399681221,1766615441993,-1263.0,0.00016299,2]
[399681222,1766615442004,-432.0,0.00016299,2]
[399681223,1766615442016,-912.0,0.00016299,2]
[399681224,1766615442026,-1198.0,0.00016299,2]
[399681225,1766615442036,-604.0,0.00016404,2]
[399681226,1766615442047,-604.0,0.00016408,2]
[399681227,1766615442057,-736.0,0.00016413,2]
[399681228,1766615442067,-183.75,0.00016427,2]
[399681229,1766615442077,-19231.83147277,0.00016435,2]
[399681230,1766615442088,-14050.46146588,0.00016435,2]
[399681231,1766615442098,-12624.6,0.00016438,2]
[399681232,1766615442109,-500.0,0.00016438,2]
[399681233,1766615442119,-500.0,0.00016438,2]
[399681234,1766615442130,-500.0,0.00016438,2]
[399681235,1766615442141,-500.0,0.00016438,2]
[399681236,1766615442150,-500.0,0.00016438,2]
[399681237,1766615442161,-500.0,0.00016438,2]
[399681238,1766615442171,-500.0,0.00016438,2]
[399681239,1766615442181,-166.04854049,0.00016438,2]
[399681240,1766615442191,-500.0,0.00016438,2]
[399681241,1766615442201,-500.0,0.00016438,2]
[399681242,1766615442212,-8962.52,0.00016438,2]
[399681243,1766615442222,-260.755928,0.00016438,2]
[399681244,1766615442231,-604.0,0.00016451,2]
[399681245,1766615442242,-604.0,0.00016459,2]
[399681246,1766615442252,-604.0,0.00016486,2]
[399681247,1766615442263,-556.44,0.0001652,2]
[399681248,1766615442272,-544.73,0.0001652,2]
[399681249,1766615442282,-604.0,0.00016566,2]
[399681250,1766615442292,-604.0,0.00016581,2]
[399681251,1766615442302,-166.67,0.00016587,2]
[399681252,1766615442313,-4052.17,0.00016597,2]
[399681253,1766615442323,-604.0,0.00016606,2]
[399681254,1766615442333,-604.0,0.00016646,2]
[399681255,1766615442343,-1036.98669577,0.0001666,2]
[399681256,1766615442353,-1098.0,0.00016667,2]
[399681257,1766615442363,-250.0,0.00016698,2]
[399681258,1766615442373,-200.0,0.00016698,2]
[399681259,1766615442384,-200.0,0.00016698,2]
[399681260,1766615442394,-150.0,0.00016698,2]
[399681261,1766615442405,-152.0,0.00016698,2]
[399681262,1766615442414,-217.814,0.00016698,2]
[399681263,1766615442424,-150.811,0.00016698,2]
[399681264,1766615442433,-228.266,0.00016698,2]
[399681265,1766615442443,-250.0,0.00016698,2]
[399681266,1766615442453,-156.381,0.00016698,2]
[399681267,1766615442462,-250.0,0.00016698,2]
[399681268,1766615442471,-250.0,0.00016698,2]
[399681269,1766615442481,-211.528,0.00016698,2]
[399681270,1766615442490,-166.0,0.00016698,2]
[399681271,1766615442501,-226.805,0.00016698,2]
[399681272,1766615442511,-164.84,0.00016712,2]
[399681273,1766615442521,-604.0,0.00016734,2]
[399681274,1766615442530,-604.0,0.00016749,2]
[399681275,1766615442540,-604.0,0.00016761,2]
[399681276,1766615442550,-604.0,0.00016787,2]
[399681277,1766615442559,-604.0,0.00016794,2]
[399681278,1766615442570,-556.44,0.00016794,2]
[399681279,1766615442580,-544.73,0.00016794,2]
[399681280,1766615442589,-604.0,0.00016806,2]
[399681281,1766615442600,-604.0,0.00016817,2]
[399681282,1766615442611,-604.0,0.00016851,2]
[399681283,1766615442621,-200.0,0.00016864,2]
[399681284,1766615442632,-19231.83147277,0.000169,2]
[399681285,1766615442642,-14050.46146588,0.000169,2]
[399681286,1766615442653,-216.55418196,0.000169,2]
[399681287,1766615442663,-694.93232339,0.000169,2]
[399681288,1766615442673,-823.0,0.00016909,2]
[399681289,1766615442683,-502.01719743,0.00016973,2]
[399681290,1766615442693,-174.83400543,0.00016973,2]
[399681291,1766615442703,-164.80244684,0.00016973,2]
[399681292,1766615442713,-500.0,0.00016973,2]
[399681293,1766615442723,-500.0,0.00016973,2]
[399681294,1766615442734,-500.0,0.00016973,2]
[399681295,1766615442744,-501.65480371,0.00016973,2]
[399681296,1766615442754,-500.35332728,0.00016973,2]
[399681297,1766615442764,-500.0,0.00016973,2]
[399681298,1766615442774,-500.0,0.00016973,2]
[399681299,1766615442784,-162.11626746,0.00016973,2]
[399681300,1766615442794,-500.0,0.00016973,2]
[399681301,1766615442804,-500.0,0.00016973,2]
[399681302,1766615442814,-500.0,0.00016973,2]
[399681303,1766615442824,-500.0,0.00016973,2]
[399681304,1766615442834,-537.88170422,0.00016973,2]
[399681305,1766615442844,-500.0,0.00016973,2]
[399681306,1766615442854,-254.14415415,0.00016973,2]
[399681307,1766615442863,-500.0,0.00016973,2]
[399681308,1766615442873,-500.0,0.00016973,2]
[399681309,1766615442882,-150.0,0.00016973,2]
[399681310,1766615442892,-604.0,0.00016977,2]
[399681311,1766615442902,-500.0,0.00016986,2]
[399681312,1766615442911,-500.0,0.00016986,2]
[399681313,1766615442922,-500.0,0.00016986,2]
[399681314,1766615442935,-500.0,0.00016986,2]
[399681315,1766615442947,-500.0,0.00016986,2]
[399681316,1766615442957,-150.0,0.00016986,2]
[399681317,1766615442967,-150.0,0.00016986,2]
[399681318,1766615442977,-150.0,0.00016986,2]
[399681319,1766615442987,-150.0,0.00016986,2]
[399681320,1766615442997,-604.0,0.00016998,2]
[399681321,1766615443008,-500.0,0.00016999,2]
[399681322,1766615443018,-574.72487686,0.00016999,2]
[399681324,1766615443028,-300.0,0.00016999,2]
[399681325,1766615443038,-671.0702352,0.00016999,2]
[399681327,1766615443048,-300.0,0.00016999,2]
[399681329,1766615443058,-500.0,0.00016999,2]
[399681330,1766615443068,-500.0,0.00016999,2]
[399681332,1766615443079,-500.0,0.00016999,2]
[399681333,1766615443089,-500.0,0.00016999,2]
[399681334,1766615443100,-500.0,0.00016999,2]
[399681335,1766615443110,-251.74375334,0.00016999,2]
[399681336,1766615443121,-500.0,0.00016999,2]
[399681337,1766615443131,-500.0,0.00016999,2]
[399681338,1766615443141,-500.0,0.00016999,2]
[399681339,1766615443151,-500.0,0.00016999,2]
[399681340,1766615443161,-500.0,0.00016999,2]
[399681341,1766615443171,-500.0,0.00016999,2]
[399681343,1766615443399,-500.0,0.00016999,2]
[399681344,1766615443410,-300.0,0.00016999,2]
[399681345,1766615443420,-300.0,0.00016999,2]
[399681346,1766615443430,-666.0,0.00016999,2]
[399681347,1766615443440,-306.55157077,0.00016999,2]
[399681348,1766615443450,-750488.69112484,0.00017,2]
[399681349,1766615443460,-160.0,0.00017,2]
[399681350,1766615443470,-3485026.17875942,0.00017,2]
[399681352,1766615443875,-4172.17548279,0.00017,2]
[399681354,1766615443887,-336.41925327,0.00017,2]
[399681358,1766615444548,-295.39157699,0.0001323,2]
[399681359,1766615444558,-4.60842301,0.00017,2]
[399681360,1766615444623,-298.56824627,0.00017,2]
[399681361,1766615445057,-1.7e-07,0.00017,2]
[399681362,1766615445069,-1061753.40124456,0.00017,2]
[399681363,1766615445159,5603.118532,0.00012614,2]
[399681364,1766615445196,10000.01,0.00012614,2]
[399681365,1766615445872,-2379.12870126,0.00012614,2]
[399681366,1766615445912,-3891.73401945,0.00012614,2]
[399681367,1766615445937,-0.8885334,0.00012614,2]
[399681368,1766615445949,-10007.97303453,0.00012614,2]
[399681369,1766615445961,-36643.78171981,0.00012614,2]
[399681390,1766615446353,-3294.0,0.00012614,2]
[399681393,1766615446366,-117525.00000287,0.00012614,2]
[399681399,1766615446471,-1251.4000001,0.00012614,2]
[399681400,1766615446593,-785.98369254,0.00012614,2]
[399681408,1766615528601,-2570.761,0.00012362,2]
[399681409,1766615528637,-264.768,0.00012362,2]
[399681410,1766615528672,-300.0,0.00012486,2]
[399681411,1766615528706,-432.20913134,0.0001261,2]
[399681412,1766615528741,-300.0,0.00012612,2]
[399681414,1766615534592,-163.27,0.00011315,2]
[399681415,1766615595230,-300.0,0.00012371,2]
[399681416,1766615595261,-1200.0,0.00012371,2]
[399681417,1766615595292,-234.78731878,0.00012372,2]
[399681418,1766615595331,-234.78731878,0.00012372,2]
[399681419,1766615595363,-200.0,0.00012372,2]
[399681420,1766615595394,-207.4,0.00012372,2]
[399681421,1766615595424,-215.0738,0.00012372,2]
[399681422,1766615595454,-223.0315306,0.00012372,2]
[399681423,1766615595484,-231.28369723,0.00012372,2]
[399681424,1766615595514,-239.84119403,0.00012372,2]
[399681425,1766615595544,-248.71531821,0.00012372,2]
[399681426,1766615595574,-257.91778498,0.00012372,2]
[399681427,1766615595605,-267.46074303,0.00012372,2]
[399681428,1766615595637,-150.0,0.00012612,2]
[399681429,1766615595669,-234.78731878,0.00012613,2]
[399681430,1766615595701,-194.61928856,0.00012613,2]
[399681431,1766615595736,-220.59937404,0.00012613,2]
[399681432,1766615595957,-279.40062596,0.00012613,2]
[399681433,1766615595988,-414.32121689,0.00012613,2]
[399681434,1766615596020,-417.73301744,0.00012613,2]
[399681435,1766615596057,-358.1412619,0.00012613,2]
[399681436,1766615596096,-500.0,0.00012613,2]
[399681437,1766615596134,-500.0,0.00012613,2]
[399681438,1766615596173,-500.0,0.00012613,2]
[399681439,1766615596211,-500.0,0.00012613,2]
[399681440,1766615596250,-445.4929048,0.00012613,2]
[399681441,1766615596291,-500.0,0.00012613,2]
[399681442,1766615596328,-200.0,0.00012613,2]
[399681443,1766615596365,-269.83194602,0.00012613,2]
[399681444,1766615607872,-8228.68342345,0.00012613,2]
[399681445,1766615626307,-10000.01,0.00012613,2]
[399681446,1766615632751,-10000.01,0.00012613,2]
[399681447,1766615840814,-10000.01,0.00012236,2]
[399681448,1766615841089,-282.04,0.00012236,2]
[399681449,1766615841119,-9435.93,0.00012236,2]
[399681450,1766615841203,-300.0,0.00012374,2]
[399681451,1766615841240,-300.0,0.00012465,2]
[399681452,1766615841273,-189.10137661,0.00012513,2]
[399681453,1766615841307,-250.0,0.0001252,2]
[399681454,1766615841338,-300.0,0.00012528,2]
[399681455,1766615841464,-7321.80724678,0.00012529,2]
[399681456,1766615856118,-200.0,0.00012372,2]
[399681457,1766615856152,-207.4,0.00012372,2]
[399681458,1766615856186,-215.0738,0.00012372,2]
[399681459,1766615856221,-223.0315306,0.00012372,2]
[399681460,1766615856257,-231.28369723,0.00012372,2]
[399681461,1766615856291,-363.47477424,0.00012372,2]
[399681462,1766615856326,-1136.32820686,0.00012529,2]
[399681463,1766615856487,-4846.82598214,0.00012529,2]
[399681464,1766615865195,-378.18298994,0.00012529,2]
[399681465,1766615865238,-250.0,0.00012549,2]
[399681466,1766615865362,-8743.64402012,0.00012568,2]
[399681467,1766615923417,-2500.0,0.00012514,2]
[399681468,1766615923450,-300.0,0.00012567,2]
[399681469,1766615923481,-1200.0,0.00012567,2]
[399681470,1766615923511,-250.0,0.00012568,2]
[399681471,1766615923542,-300.0,0.00012568,2]
[399681472,1766615923674,-900.01,0.00012568,2]
[399681473,1766615926113,-2156.5806769,0.00012568,2]
[399681474,1766615926145,-5686.8486462,0.00012568,2]
[399681475,1766615932230,-300.0,0.00012594,2]
[399681476,1766615932266,-322.6107,0.00012606,2]
[399681477,1766615932297,-500.0,0.00012606,2]
[399681478,1766615932327,-500.0,0.00012606,2]
[399681479,1766615932358,-500.0,0.00012606,2]
[399681480,1766615932391,-500.0,0.00012606,2]
[399681481,1766615932423,-500.0,0.00012606,2]
[399681482,1766615932456,-500.0,0.00012606,2]
[399681483,1766615932488,-500.0,0.00012606,2]
[399681484,1766615932518,-500.0,0.00012606,2]
[399681485,1766615932551,-254.7886,0.00012606,2]
[399681486,1766615932822,-245.2114,0.00012606,2]
[399681487,1766616006908,-323.08,0.00012143,2]
[399681488,1766616006934,-179.66,0.00012513,2]
[399681489,1766616009832,-120.34,0.00012513,2]
[399681490,1766616009857,-209.75409672,0.00012513,2]
[399681491,1766616012818,-90.24590328,0.00012513,2]
[399681492,1766616012844,-317.36295975,0.00012513,2]
[399681493,1766616081986,-150.0,0.00012181,2]
[399681494,1766616082009,-74.35526411,0.00012414,2]
[399681495,1766616120386,-167.54408662,0.00012414,2]
[399681496,1766616120420,-241.89935072,0.00012491,2]
[399681497,1766616120455,-882.63704025,0.00012513,2]
[399681498,1766616120488,-253.0,0.00012513,2]
[399681499,1766616120657,-6909.84904482,0.00012514,2]
[399681500,1766616126356,-300.0,0.00012513,2]
[399681501,1766616126391,-150.0,0.00012513,2]
[399681502,1766616126542,-9100.01,0.00012514,2]
[399681503,1766616160297,-3784.93884482,0.00012514,2]
[399681504,1766616160332,-2430.13231036,0.00012514,2]
[399681505,1766616160627,-267.3552,0.00012514,2]
[399681506,1766616160672,-2500.0,0.00012514,2]
[399681507,1766616160710,-2063.1586,0.00012514,2]
[399681508,1766616160894,-338.9824,0.00012514,2]
[399681509,1766616161013,-250.896,0.00012514,2]
[399681510,1766616161053,-380.77234065,0.00012568,2]
[399681511,1766616161092,-223.65923706,0.00012568,2]
[399681512,1766616161292,-8289.35484458,0.00012568,2]
[399681513,1766616161350,-4248.65731374,0.00012568,2]
[399681514,1766616161388,-1502.69537252,0.00012568,2]
[399681515,1766616161402,-241.89935072,0.00012568,2]
[399681516,1766616161416,-578.20924308,0.00012568,2]
[399681517,1766616161430,-300.0,0.00012587,2]
[399681518,1766616161443,-300.0,0.00012601,2]
[399681519,1766616161456,-207.4,0.00012606,2]
[399681520,1766616161469,-322.6107,0.00012606,2]
[399681521,1766616161481,-500.0,0.00012606,2]
[399681522,1766616161495,-500.0,0.00012606,2]
[399681523,1766616161507,-596.27065898,0.00012606,2]
[399681524,1766616161520,-500.0,0.00012606,2]
[399681525,1766616161532,-202.26736096,0.00012606,2]
[399681526,1766616161669,-297.73263904,0.00012606,2]
[399681527,1766616161714,-500.0,0.00012606,2]
[399681528,1766616161757,-500.0,0.00012606,2]
[399681529,1766616161799,-500.0,0.00012606,2]
[399681530,1766616161841,-500.0,0.00012606,2]
[399681531,1766616161884,-500.0,0.00012606,2]
[399681532,1766616161925,-500.0,0.00012606,2]
[399681533,1766616161972,-500.0,0.00012606,2]
[399681534,1766616162014,-200.0,0.00012606,2]
[399681535,1766616162058,-500.0,0.00012606,2]
[399681536,1766616162102,-500.0,0.00012606,2]
[399681537,1766616162336,-500.0,0.00012606,2]
[399681538,1766616162350,-253.62004722,0.00012606,2]
[399681539,1766616162405,-246.37995278,0.00012606,2]
[399681540,1766616162447,-250.0,0.00012606,2]
[399681541,1766616162489,-500.0,0.00012606,2]
[399681542,1766616162529,-267.16027015,0.00012606,2]
[399681543,1766616162569,-500.0,0.00012606,2]
[399681544,1766616162607,-500.0,0.00012606,2]
[399681545,1766616162646,-500.0,0.00012606,2]
[399681546,1766616162685,-151.0,0.00012606,2]
[399681547,1766616162722,-500.0,0.00012606,2]
[399681548,1766616162765,-151.0,0.00012606,2]
[399681549,1766616162807,-200.0,0.00012606,2]
[399681550,1766616162848,-500.0,0.00012606,2]
[399681551,1766616162888,-151.0,0.00012606,2]
[399681552,1766616162928,-500.0,0.00012606,2]
[399681553,1766616162968,-15.92955414,0.00012606,2]
[399681554,1766616163125,-500.0,0.00012606,2]
[399681555,1766616163164,-135.07044586,0.00012606,2]
[399681556,1766616163201,-151.0,0.00012606,2]
[399681557,1766616163239,-500.0,0.00012606,2]
[399681558,1766616163278,-151.0,0.00012606,2]
[399681559,1766616163316,-500.0,0.00012606,2]
[399681560,1766616163355,-151.0,0.00012606,2]
[399681561,1766616163393,-500.0,0.00012606,2]
[399681562,1766616163431,-151.0,0.00012606,2]
[399681563,1766616163469,-500.0,0.00012606,2]
[399681564,1766616163507,-151.0,0.00012606,2]
[399681565,1766616163543,-500.0,0.00012606,2]
[399681566,1766616163580,-500.0,0.00012606,2]
[399681567,1766616163618,-151.0,0.00012606,2]
[399681568,1766616163655,-199.17809188,0.00012606,2]
[399681569,1766616163692,-19.51292452,0.00012606,2]
[399681570,1766616163844,-480.48707548,0.00012606,2]
[399681571,1766616163883,-500.0,0.00012606,2]
[399681572,1766616163921,-500.0,0.00012606,2]
[399681573,1766616163957,-500.0,0.00012606,2]
[399681574,1766616163994,-500.0,0.00012606,2]
[399681575,1766616164029,-500.0,0.00012606,2]
[399681576,1766616164063,-290.02485182,0.00012613,2]
[399681577,1766616164104,-500.0,0.00012613,2]
[399681578,1766616164144,-500.0,0.00012613,2]
[399681579,1766616164186,-500.0,0.00012613,2]
[399681580,1766616166155,-500.0,0.00012606,2]
[399681581,1766616166190,-500.0,0.00012606,2]
[399681582,1766616166230,-500.0,0.00012613,2]
[399681583,1766616166272,-500.0,0.00012613,2]
[399681584,1766616166315,-500.0,0.00012613,2]
[399681585,1766616166375,-500.0,0.00012613,2]
[399681586,1766616166418,-500.0,0.00012613,2]
[399681587,1766616166464,-500.0,0.00012613,2]
[399681588,1766616166501,-500.0,0.00012613,2]
[399681589,1766616166537,-500.0,0.00012613,2]
[399681590,1766616166673,-500.0,0.00012613,2]
[399681591,1766616166709,-500.0,0.00012613,2]
[399681592,1766616166745,-500.0,0.00012613,2]
[399681593,1766616166783,-500.0,0.00012613,2]
[399681594,1766616166819,-500.0,0.00012613,2]
[399681595,1766616166856,-500.0,0.00012613,2]
[399681596,1766616166896,-500.0,0.00012613,2]
[399681597,1766616166932,-500.0,0.00012613,2]
[399681598,1766616166969,-500.0,0.00012613,2]
[399681599,1766616167006,-500.0,0.00012613,2]
[399681600,1766616167171,-500.0,0.00012606,2]
[399681601,1766616167211,-500.0,0.00012613,2]
[399681602,1766616167251,-500.0,0.00012613,2]
[399681603,1766616167291,-500.0,0.00012613,2]
[399681604,1766616167333,-500.0,0.00012613,2]
[399681605,1766616167373,-500.0,0.00012613,2]
[399681606,1766616167414,-500.0,0.00012613,2]
[399681607,1766616167454,-500.0,0.00012613,2]
[399681608,1766616167491,-193.13989955,0.00012613,2]
[399681609,1766616167532,-500.0,0.00012613,2]
[399681610,1766616167570,-113.7302009,0.00012613,2]
[399681611,1766616168044,-386.2697991,0.00012613,2]
[399681612,1766616168083,-500.0,0.00012613,2]
[399681613,1766616168124,-593.78048515,0.00012613,2]
[399681614,1766616168162,-500.0,0.00012613,2]
[399681615,1766616168202,-500.0,0.00012613,2]